bitfinex-derivatives/quotes_BTCF0:USTF0_20250222
["timestamp","ask_amount","ask_price","bid_price","bid_amount"]
[1740200823674,0.2476671,96455.0,96454.0,0.18628454]
[1740200824271,0.2476671,96455.0,96454.0,0.02858454]
[1740200824576,0.2466671,96455.0,96454.0,0.02858454]
[1740200824964,0.2456671,96455.0,96454.0,0.02858454]
[1740200825269,0.0403,96455.0,96441.0,0.10056]
[1740200825470,0.2073951,96442.0,96441.0,0.10056]
[1740200826771,0.2093951,96442.0,96441.0,0.10056]
[1740200827575,0.012,96442.0,96440.0,0.0614]
[1740200827769,0.2306972,96441.0,96440.0,0.0614]
[1740200829271,0.2326972,96441.0,96440.0,0.0614]
[1740200829474,0.2074015,96439.0,96438.0,0.00241]
[1740200829768,0.01,96439.0,96435.0,0.00015553]
[1740200829974,0.578208,96436.0,96435.0,0.00015553]
[1740200830373,0.581308,96436.0,96435.0,0.00015553]
[1740200831381,0.582308,96436.0,96435.0,0.00015553]
[1740200832280,0.579208,96436.0,96435.0,0.00015553]
[1740200849286,0.218408,96436.0,96435.0,0.00015553]
[1740200849594,0.579208,96436.0,96435.0,0.00015553]
[1740200855093,0.569208,96436.0,96435.0,0.00015553]
[1740200855293,0.579208,96436.0,96435.0,0.00015553]
[1740200858503,0.218408,96436.0,96435.0,0.00015553]
[1740200861193,0.26883432,96436.0,96435.0,0.00015553]
[1740200868205,0.218408,96436.0,96435.0,0.00015553]
[1740200875411,0.208408,96436.0,96435.0,0.00015553]
[1740200877313,0.218408,96436.0,96435.0,0.00015553]
[1740200878119,0.208408,96436.0,96435.0,0.00015553]
[1740200878622,0.218408,96436.0,96435.0,0.00015553]
[1740200887224,0.26883683,96436.0,96435.0,0.00015553]
[1740200890931,0.62963683,96436.0,96435.0,0.00015553]
[1740200892029,0.62963683,96436.0,96435.0,0.01636678]
[1740200893923,0.62963683,96436.0,96435.0,0.01636699]
[1740200897421,0.26883683,96436.0,96435.0,0.01636699]
[1740200897725,0.62963683,96436.0,96435.0,0.01636699]
[1740200899031,0.62963683,96436.0,96435.0,0.00015553]
[1740200900124,0.62963683,96436.0,96435.0,0.01636713]
[1740200903130,2.12963683,96436.0,96435.0,0.01636713]
[1740200903527,0.62963683,96436.0,96435.0,0.01636713]
[1740200903929,0.62963683,96436.0,96435.0,0.01636735]
[1740200904323,0.62963683,96436.0,96435.0,0.00015553]
[1740200912431,0.61963683,96436.0,96435.0,0.00015553]
[1740200913234,0.75187983,96436.0,96435.0,0.00015553]
[1740200913440,0.76187983,96436.0,96435.0,0.00015553]
[1740200913740,0.75187983,96436.0,96435.0,0.00015553]
[1740200913938,0.76187983,96436.0,96435.0,0.00015553]
[1740200914445,0.76187983,96436.0,96435.0,2.668e-05]
[1740200916645,0.62963683,96436.0,96435.0,2.668e-05]
[1740200917037,0.62963683,96436.0,96435.0,0.01623778]
[1740200919840,0.26883683,96436.0,96435.0,0.01623776]
[1740200920152,0.62963683,96436.0,96435.0,0.01623776]
[1740200921040,0.62963683,96436.0,96435.0,2.668e-05]
[1740200923649,0.26883683,96436.0,96435.0,2.668e-05]
[1740200923850,0.62963683,96436.0,96435.0,2.668e-05]
[1740200943485,0.76681496,96436.0,96435.0,2.668e-05]
[1740200947781,0.2074144,96433.0,96432.0,0.16832]
[1740200947984,0.2174144,96433.0,96432.0,0.16832]
[1740200948281,0.2074209,96430.0,96429.0,0.0613]
[1740200948481,0.2174209,96430.0,96429.0,0.0613]
[1740200950789,0.2174209,96430.0,96429.0,0.0623]
[1740200950989,0.2174209,96430.0,96429.0,0.0633]
[1740200953986,0.26784973,96430.0,96429.0,0.0633]
[1740200957092,0.62864973,96430.0,96429.0,0.0633]
[1740200957893,0.26784973,96430.0,96429.0,0.0633]
[1740200958189,0.62864973,96430.0,96429.0,0.0633]
[1740200960889,0.62864973,96430.0,96429.0,1e-07]
[1740200961195,0.64504973,96430.0,96429.0,1e-07]
[1740200961487,0.65802883,96430.0,96400.0,0.1]
[1740200961695,0.01,96406.0,96404.0,0.18663346]
[1740200961891,0.5782747,96405.0,96404.0,0.18663346]
[1740200962689,0.5712747,96405.0,96404.0,0.18663346]
[1740200963091,0.5652747,96405.0,96404.0,0.18663346]
[1740200963397,0.5652747,96405.0,96404.0,0.19363346]
[1740200963599,0.5662747,96405.0,96404.0,0.20063346]
[1740200964593,0.5652747,96405.0,96404.0,0.19563346]
[1740200965002,0.5652747,96405.0,96404.0,0.18963346]
[1740200965595,0.21512808,96405.0,96404.0,0.18963346]
[1740200965815,0.57592808,96405.0,96404.0,0.18963346]
[1740200967199,0.62635691,96405.0,96404.0,0.003]
[1740200970206,0.57592808,96405.0,96404.0,0.003]
[1740200978109,0.2074833,96401.0,96400.0,1e-07]
[1740200978312,0.2075091,96389.0,96388.0,0.06368894]
[1740200978608,0.5783091,96389.0,96388.0,0.06368894]
[1740200980212,0.5773091,96389.0,96388.0,0.06368894]
[1740200980815,0.5773091,96389.0,96388.0,0.06468894]
[1740200981008,0.5773091,96389.0,96388.0,0.06568894]
[1740200983711,0.5773091,96389.0,96379.0,0.00015562]
[1740200983712,0.2075285,96380.0,96379.0,0.00015562]
[1740200983906,0.2175285,96380.0,96379.0,0.00015562]
[1740200984916,0.2175285,96380.0,96379.0,0.00515562]
[1740200986822,0.2175285,96380.0,96379.0,0.00115562]
[1740200987315,0.2075285,96380.0,96379.0,0.00115562]
[1740200987618,0.2175285,96380.0,96379.0,0.00115562]
[1740200990115,0.2125285,96380.0,96379.0,0.01637614]
[1740200990317,0.2165285,96380.0,96379.0,0.01637614]
[1740200990516,0.2265285,96380.0,96379.0,0.01637614]
[1740200991419,0.2255285,96380.0,96379.0,0.01637614]
[1740200991626,0.2255285,96380.0,96379.0,0.01637562]
[1740200993719,0.2255285,96380.0,96379.0,0.00015562]
[1740200996616,0.2255285,96380.0,96375.0,0.0313]
[1740200996617,0.2384,96380.0,96365.0,0.00155651]
[1740200996814,0.2175586,96366.0,96365.0,0.00155651]
[1740200997823,0.2175586,96366.0,96365.0,0.00255651]
[1740200998126,0.2075586,96366.0,96365.0,0.00255651]
[1740200998327,0.2175586,96366.0,96365.0,0.00255651]
[1740201001621,0.22772179,96366.0,96365.0,0.00255651]
[1740201004118,0.2175586,96366.0,96365.0,0.00255651]
[1740201005528,0.0518867,96372.0,96365.0,0.00255651]
[1740201005823,0.1549974,96378.0,96377.0,0.2075349]
[1740201006125,0.1050974,96378.0,96377.0,0.3116549]
[1740201006425,0.3608,96397.0,96388.0,0.2075113]
[1740201006629,0.01015126,96410.0,96408.0,0.2074682]
[1740201006823,0.00155651,96411.0,96408.0,0.2074682]
[1740201007431,0.3608,96421.0,96408.0,0.2074682]
[1740201007834,0.22359155,96409.0,96408.0,0.2074682]
[1740201008840,0.007,96409.0,96408.0,0.2074682]
[1740201009331,0.007,96409.0,96408.0,0.2699682]
[1740201009530,0.014,96409.0,96408.0,0.2709682]
[1740201009730,0.007,96409.0,96408.0,0.2709682]
[1740201010029,0.014,96409.0,96408.0,0.3032682]
[1740201010230,0.007,96409.0,96408.0,0.3032682]
[1740201010437,0.011,96409.0,96408.0,0.3032682]
[1740201011235,0.2184661,96409.0,96408.0,0.3032682]
[1740201012238,0.011,96409.0,96408.0,0.3032682]
[1740201013041,0.2184661,96409.0,96408.0,0.3032682]
[1740201014141,0.011,96409.0,96408.0,0.3032682]
[1740201014531,0.2184661,96409.0,96408.0,0.3032682]
[1740201014730,0.2184661,96409.0,96408.0,0.6640682]
[1740201017043,0.011,96409.0,96408.0,0.6640682]
[1740201022350,0.011,96409.0,96408.0,0.3032682]
[1740201022555,0.011,96409.0,96408.0,0.6640682]
[1740201024556,0.011,96409.0,96408.0,0.3032682]
[1740201024858,0.011,96409.0,96408.0,0.6640682]
[1740201027654,0.2184661,96409.0,96408.0,0.6640682]
[1740201027850,0.011,96409.0,96408.0,0.6640682]
[1740201031650,0.011,96409.0,96408.0,0.6317682]
[1740201032750,0.011,96409.0,96408.0,0.7346482]
[1740201034660,0.011,96409.0,96408.0,0.7043482]
[1740201038366,0.2184661,96409.0,96408.0,0.7043482]
[1740201040967,0.2184661,96409.0,96408.0,0.3435482]
[1740201041267,0.2184661,96409.0,96408.0,0.7043482]
[1740201047660,0.2184661,96409.0,96408.0,0.3435482]
[1740201047867,0.2184661,96409.0,96408.0,0.7043482]
[1740201048373,0.011,96409.0,96408.0,0.7043482]
[1740201048873,0.011,96409.0,96408.0,0.72056078]
[1740201049074,0.2184661,96409.0,96408.0,0.72056078]
[1740201051767,0.2184661,96409.0,96408.0,0.7043482]
[1740201052170,0.011,96409.0,96408.0,0.7043482]
[1740201052567,0.2184661,96409.0,96408.0,0.7043482]
[1740201054474,0.2184661,96409.0,96408.0,0.5692682]
[1740201054673,0.2184661,96409.0,96408.0,0.6712682]
[1740201056278,0.2184661,96409.0,96408.0,0.5692682]
[1740201056469,0.2184661,96409.0,96408.0,0.6712282]
[1740201058782,0.2184661,96409.0,96408.0,0.5692682]
[1740201058971,0.2184661,96409.0,96408.0,0.6711082]
[1740201062876,0.2184661,96409.0,96408.0,0.3103082]
[1740201063076,0.2184661,96409.0,96408.0,0.6711082]
[1740201068488,0.2184661,96409.0,96408.0,0.3103082]
[1740201068788,0.2184661,96409.0,96408.0,0.6711082]
[1740201069785,0.2184661,96409.0,96408.0,0.85779832]
[1740201077894,0.2184661,96409.0,96408.0,0.6711082]
[1740201078484,0.2184661,96409.0,96408.0,0.3103082]
[1740201078791,0.2184661,96409.0,96408.0,0.6711082]
[1740201079689,0.011,96409.0,96408.0,0.6711082]
[1740201079892,0.0304,96415.0,96413.0,0.0518642]
[1740201080089,0.0304,96415.0,96414.0,0.2391553]
[1740201080694,0.18860458,96422.0,96417.0,0.2074489]
[1740201080889,0.0329,96421.0,96417.0,0.2074489]
[1740201081090,0.0329,96421.0,96417.0,0.22365994]
[1740201081489,0.15550458,96422.0,96417.0,0.22365994]
[1740201082696,0.00615562,96418.0,96417.0,0.22465994]
[1740201083191,0.00615562,96418.0,96417.0,0.32601994]
[1740201083800,0.01315562,96418.0,96417.0,0.32701994]
[1740201085993,0.01315562,96418.0,96417.0,0.68781994]
[1740201086695,0.0329,96426.0,96425.0,0.2074316]
[1740201087004,0.0329,96426.0,96425.0,0.58444264]
[1740201087503,0.0329,96426.0,96425.0,0.61754199]
[1740201087893,0.0399,96426.0,96425.0,0.61754199]
[1740201088195,0.0399,96426.0,96425.0,0.6013316]
[1740201088998,0.0399,96426.0,96425.0,0.6023316]
[1740201093201,0.0399,96426.0,96425.0,0.3949]
[1740201105309,0.0399,96426.0,96425.0,0.0341]
[1740201105510,0.0399,96426.0,96425.0,0.7557]
[1740201108411,0.0399,96426.0,96425.0,0.0341]
[1740201108613,0.0399,96426.0,96425.0,0.7557]
[1740201121515,0.0399,96426.0,96425.0,0.0341]
[1740201121722,0.0399,96426.0,96425.0,0.7557]
[1740201128524,0.0399,96426.0,96425.0,1.07993661]
[1740201133129,0.0399,96426.0,96425.0,1.18009661]
[1740201134330,0.0399,96426.0,96425.0,1.07993661]
[1740201134630,0.0399,96426.0,96425.0,1.18005661]
[1740201140630,0.0399,96426.0,96425.0,0.85582]
[1740201143429,0.0399,96426.0,96425.0,0.85566]
[1740201150039,0.0399,96426.0,96425.0,1.17382677]
[1740201153042,0.2473295,96426.0,96425.0,1.38125837]
[1740201158457,0.2473295,96426.0,96425.0,1.0630916]
[1740201167659,0.2473295,96426.0,96425.0,1.37698402]
[1740201168371,0.0399,96426.0,96425.0,1.37698402]
[1740201172359,0.0821538,96433.0,96425.0,1.37698402]
[1740201172360,0.0303,96433.0,96425.0,1.16955242]
[1740201172561,0.0303,96434.0,96433.0,0.2074144]
[1740201172768,0.0303,96434.0,96433.0,0.5682144]
[1740201172963,0.00015562,96435.0,96434.0,0.2074123]
[1740201173167,0.00015562,96435.0,96434.0,0.2374123]
[1740201176568,0.00015562,96435.0,96434.0,0.55130472]
[1740201178569,0.00015562,96435.0,96434.0,0.56156348]
[1740201179669,0.0303,96440.0,96434.0,0.35415118]
[1740201179870,0.0303,96440.0,96439.0,0.5682015]
[1740201180071,0.0303,96440.0,96439.0,0.6681615]
[1740201181672,0.0303,96440.0,96439.0,0.6691615]
[1740201186084,0.0303,96440.0,96439.0,0.85531335]
[1740201188183,0.2376994,96440.0,96439.0,0.85531335]
[1740201189182,0.2376994,96440.0,96439.0,0.85527335]
[1740201190385,0.2376994,96440.0,96439.0,0.6691215]
[1740201193678,0.2376994,96440.0,96439.0,1.0299215]
[1740201195485,0.2376994,96440.0,96439.0,0.3083215]
[1740201195685,0.2376994,96440.0,96439.0,1.0299215]
[1740201199686,0.2376994,96440.0,96439.0,0.3083215]
[1740201199887,0.2376994,96440.0,96439.0,1.0299215]
[1740201201783,0.2376994,96440.0,96439.0,0.7226]
[1740201202387,0.2376994,96440.0,96439.0,1.0303615]
[1740201203184,0.2376994,96440.0,96439.0,0.9300015]
[1740201203389,0.2376994,96440.0,96439.0,1.0303215]
[1740201204680,0.2376994,96440.0,96439.0,1.0302815]
[1740201205591,0.2376994,96440.0,96439.0,0.3086815]
[1740201207197,0.2376994,96440.0,96439.0,0.3086015]
[1740201210390,0.2376994,96440.0,96439.0,0.49508986]
[1740201213292,0.2376994,96440.0,96439.0,0.28768836]
[1740201214595,0.2376994,96440.0,96439.0,0.1012]
[1740201215198,0.2376994,96440.0,96439.0,0.3086015]
[1740201217094,0.2376994,96440.0,96439.0,0.3418015]
[1740201220491,0.2376994,96440.0,96439.0,0.1344]
[1740201220698,0.2376994,96440.0,96439.0,0.3418015]
[1740201222701,0.2376994,96440.0,96439.0,0.1344]
[1740201222901,0.2376994,96440.0,96439.0,0.3418015]
[1740201233501,0.39320398,96440.0,96439.0,0.3418015]
[1740201237006,0.39320398,96440.0,96439.0,0.1344]
[1740201237306,0.39320398,96440.0,96439.0,0.3418015]
[1740201237605,0.2376994,96440.0,96439.0,0.3418015]
[1740201238015,0.2376994,96440.0,96439.0,0.1344]
[1740201245415,0.2376994,96440.0,96439.0,0.3418015]
[1740201245919,0.2376994,96440.0,96439.0,0.1344]
[1740201248213,0.2376994,96440.0,96439.0,0.3418015]
[1740201248418,0.2376994,96440.0,96439.0,0.1344]
[1740201251818,0.2376994,96440.0,96439.0,0.001]
[1740201252023,0.2476994,96440.0,96439.0,0.001]
[1740201252217,0.29811832,96440.0,96439.0,0.001]
[1740201260023,0.40314834,96440.0,96439.0,0.001]
[1740201264629,0.37284834,96440.0,96439.0,0.001]
[1740201264926,0.37284834,96440.0,96439.0,0.2084015]
[1740201264927,0.36284834,96440.0,96439.0,0.2084015]
[1740201265834,0.15544894,96440.0,96439.0,0.5692015]
[1740201267234,0.00015554,96449.0,96443.0,0.2073929]
[1740201267235,0.15544894,96444.0,96443.0,0.2073929]
[1740201267527,0.15544894,96444.0,96443.0,0.3075129]
[1740201268732,0.15544894,96444.0,96443.0,0.3085129]
[1740201268928,0.36283974,96444.0,96443.0,0.3085129]
[1740201270231,0.15544894,96444.0,96443.0,0.3085129]
[1740201270440,0.2073908,96446.0,96445.0,0.2073886]
[1740201271636,0.2073908,96446.0,96445.0,0.2083886]
[1740201272234,0.2073908,96446.0,96445.0,0.2093886]
[1740201273540,0.2073908,96446.0,96445.0,0.5701886]
[1740201278339,0.2073908,96446.0,96445.0,0.6703086]
[1740201279047,0.2073908,96446.0,96445.0,0.5701886]
[1740201279243,0.2073908,96446.0,96445.0,0.6703086]
[1740201282840,0.2073908,96446.0,96445.0,0.5701886]
[1740201283052,0.2073908,96446.0,96445.0,0.6707486]
[1740201284750,0.00015554,96449.0,96448.0,0.2073822]
[1740201284945,0.20753554,96449.0,96448.0,0.2073822]
[1740201285147,0.20753554,96449.0,96448.0,0.2690822]
[1740201286556,0.20753554,96449.0,96448.0,0.2700822]
[1740201286756,0.20753554,96449.0,96448.0,0.2710822]
[1740201287551,0.20753554,96449.0,96448.0,0.2395822]
[1740201288059,0.20753554,96449.0,96448.0,0.2093822]
[1740201288351,0.20753554,96449.0,96448.0,0.3107422]
[1740201288950,0.20753554,96449.0,96448.0,0.2093822]
[1740201289151,0.20753554,96449.0,96448.0,0.3109022]
[1740201293558,0.20753554,96449.0,96448.0,1.0325022]
[1740201293955,0.00015554,96449.0,96448.0,1.0325022]
[1740201294751,0.20753554,96449.0,96448.0,1.0325022]
[1740201295660,0.00015554,96449.0,96448.0,1.0325022]
[1740201295861,0.20753554,96449.0,96448.0,1.0325022]
[1740201296851,0.00015554,96449.0,96448.0,1.0325022]
[1740201297555,0.20753554,96449.0,96448.0,1.0325022]
[1740201297756,0.00015554,96449.0,96448.0,1.0325022]
[1740201298263,0.20753554,96449.0,96448.0,1.0325022]
[1740201300163,0.20753554,96449.0,96448.0,0.9309822]
[1740201300467,0.20753554,96449.0,96448.0,1.0323822]
[1740201301161,0.20753554,96449.0,96448.0,1.0323422]
[1740201305261,0.00015554,96449.0,96448.0,1.0323422]
[1740201305566,0.20753554,96449.0,96448.0,1.0323422]
[1740201306965,0.00015554,96449.0,96448.0,1.0323422]
[1740201307668,0.15544894,96456.0,96455.0,0.2073671]
[1740201308069,0.15544894,96456.0,96455.0,0.2386671]
[1740201308577,0.15544894,96456.0,96455.0,0.3399471]
[1740201309073,0.15544894,96456.0,96455.0,0.3409471]
[1740201309871,0.15544894,96456.0,96455.0,0.3399471]
[1740201310277,0.15544894,96456.0,96455.0,0.35013286]
[1740201310772,0.15544894,96456.0,96455.0,0.35113286]
[1740201310971,0.0303,96462.0,96461.0,0.2073542]
[1740201311273,0.15544894,96467.0,96464.0,0.2073478]
[1740201311479,0.15544894,96467.0,96464.0,0.5681478]
[1740201312278,1e-08,96465.0,96464.0,0.5681478]
[1740201312769,1e-08,96465.0,96464.0,0.5691478]
[1740201313882,1e-08,96465.0,96464.0,0.5701478]
[1740201314881,1e-08,96465.0,96464.0,0.2093478]
[1740201315177,1e-08,96465.0,96464.0,1.17915027]
[1740201316780,1e-08,96465.0,96464.0,1.18706602]
[1740201319269,1e-08,96465.0,96464.0,1.12466428]
[1740201321275,1e-08,96465.0,96464.0,1.12566428]
[1740201323579,1e-08,96465.0,96464.0,0.93986355]
[1740201323782,1e-08,96465.0,96464.0,0.21826355]
[1740201323980,1e-08,96465.0,96464.0,0.93986355]
[1740201328580,1e-08,96465.0,96464.0,0.97176355]
[1740201330779,1e-08,96465.0,96464.0,0.25016355]
[1740201330977,1e-08,96465.0,96464.0,0.97176355]
[1740201332586,1e-08,96465.0,96464.0,1.07248355]
[1740201340688,1e-08,96465.0,96464.0,1.0645678]
[1740201341885,1e-08,96465.0,96464.0,0.9638478]
[1740201342091,1e-08,96465.0,96464.0,1.0643278]
[1740201346989,1e-08,96465.0,96464.0,1.37458089]
[1740201348190,1e-08,96465.0,96464.0,0.65298089]
[1740201348393,1e-08,96465.0,96464.0,1.37458089]
[1740201348805,0.20734561,96465.0,96464.0,1.34268089]
[1740201348994,0.20734561,96465.0,96464.0,1.03485309]
[1740201349197,0.20734561,96465.0,96464.0,1.13513309]
[1740201350090,0.20734561,96465.0,96464.0,1.13413309]
[1740201350398,0.21734561,96465.0,96464.0,0.82488]
[1740201350584,0.21734561,96465.0,96464.0,0.82288]
[1740201351090,0.22753172,96465.0,96464.0,0.82288]
[1740201351797,0.22753172,96465.0,96464.0,0.82188]
[1740201352492,0.22753172,96465.0,96464.0,0.7216]
[1740201352700,0.22753172,96465.0,96464.0,0.9289478]
[1740201353795,0.22753172,96465.0,96464.0,0.5681478]
[1740201354394,0.22753172,96465.0,96464.0,0.3608]
[1740201362199,0.2073478,96464.0,96463.0,0.10036]
[1740201362389,0.2073521,96462.0,96461.0,0.09847]
[1740201362594,0.2073521,96462.0,96461.0,0.1004]
[1740201363102,0.2718521,96462.0,96461.0,0.1004]
[1740201367205,0.2073628,96457.0,96456.0,0.6718397]
[1740201367402,0.2073628,96457.0,96456.0,0.7721997]
[1740201370605,0.2073628,96457.0,96456.0,0.4113997]
[1740201370808,0.2073628,96457.0,96456.0,0.7721997]
[1740201371013,0.2073628,96457.0,96456.0,0.4113997]
[1740201371207,0.2073628,96457.0,96456.0,0.7721997]
[1740201372714,0.2073628,96457.0,96456.0,0.7203588]
[1740201374212,0.2073628,96457.0,96456.0,0.3595588]
[1740201374416,0.2073628,96457.0,96456.0,0.7203588]
[1740201383322,0.2073628,96457.0,96456.0,0.3595588]
[1740201383523,0.2073628,96457.0,96456.0,0.7203588]
[1740201386335,0.2073628,96457.0,96456.0,0.3595588]
[1740201386628,0.2073628,96457.0,96456.0,0.7203588]
[1740201388339,0.2073628,96457.0,96456.0,0.3595588]
[1740201388635,0.2073628,96457.0,96456.0,0.7203588]
[1740201391935,0.2073628,96457.0,96456.0,0.90678039]
[1740201392435,0.2073628,96457.0,96456.0,0.90694039]
[1740201393335,0.2073628,96457.0,96456.0,0.90690039]
[1740201400645,0.2073628,96457.0,96456.0,0.96868598]
[1740201404341,0.2073628,96457.0,96456.0,0.7204788]
[1740201409336,0.2073628,96457.0,96456.0,0.46084]
[1740201409539,0.2073628,96457.0,96456.0,0.668205]
[1740201410141,0.2073628,96457.0,96456.0,0.568165]
[1740201410547,0.2073628,96457.0,96456.0,0.3608]
[1740201410746,0.2173628,96457.0,96456.0,0.3608]
[1740201415242,0.2692039,96457.0,96456.0,0.3608]
[1740201429757,0.2692039,96457.0,96456.0,0.568165]
[1740201430055,0.2692039,96457.0,96456.0,0.3608]
[1740201434056,0.2592039,96457.0,96456.0,0.3608]
[1740201434851,0.2692039,96457.0,96456.0,0.3608]
[1740201439460,0.0618411,96457.0,96454.0,0.2389681]
[1740201439669,0.2592039,96457.0,96456.0,0.3608]
[1740201439965,0.20728424,96468.0,96464.0,0.2073478]
[1740201439966,0.15544894,96468.0,96464.0,0.2073478]
[1740201440159,0.20734561,96465.0,96464.0,0.6683878]
[1740201440360,0.15544894,96468.0,96464.0,0.52574]
[1740201440665,0.15544894,96468.0,96467.0,0.2073413]
[1740201441667,0.36278814,96468.0,96467.0,0.2073413]
[1740201442161,0.15544894,96468.0,96464.0,0.4773365]
[1740201442365,0.2073456,96465.0,96464.0,0.6846827]
[1740201442762,0.2073456,96465.0,96464.0,0.7851627]
[1740201444371,0.2073456,96465.0,96464.0,0.7852027]
[1740201454496,0.2073456,96465.0,96464.0,0.7527027]
[1740201454694,0.2405456,96465.0,96464.0,0.7527027]
[1740201462291,0.2405456,96465.0,96464.0,0.3919027]
[1740201462688,0.2405456,96465.0,96464.0,0.7527027]
[1740201465392,0.2405456,96465.0,96464.0,0.7008659]
[1740201465796,0.2405456,96465.0,96464.0,0.49352]
[1740201466293,0.2405456,96465.0,96464.0,0.393]
[1740201466500,0.2405456,96465.0,96464.0,0.49332]
[1740201467096,0.2405456,96465.0,96464.0,0.13252]
[1740201467297,0.2405456,96465.0,96464.0,0.49332]
[1740201468193,0.2405456,96465.0,96464.0,0.7006678]
[1740201468795,0.2405456,96465.0,96464.0,0.49332]
[1740201469994,0.2405456,96465.0,96464.0,0.7006678]
[1740201470399,0.2405456,96465.0,96464.0,0.7005478]
[1740201473005,0.2405456,96465.0,96464.0,0.88660377]
[1740201477402,0.2405456,96465.0,96464.0,0.7005478]
[1740201487402,0.2405456,96465.0,96464.0,0.6003478]
[1740201487707,0.2405456,96465.0,96464.0,0.7005478]
[1740201489398,0.0332,96465.0,96464.0,0.7005478]
[1740201489708,0.36277094,96476.0,96475.0,0.2073241]
[1740201490008,0.39507094,96476.0,96475.0,0.5681241]
[1740201490205,0.39507094,96476.0,96475.0,0.6001241]
[1740201490709,0.15544894,96476.0,96475.0,0.6001241]
[1740201491201,0.15544894,96476.0,96475.0,0.6312241]
[1740201491599,0.15544894,96476.0,96475.0,0.7012441]
[1740201491914,0.36277094,96476.0,96475.0,0.7012441]
[1740201492214,0.207322,96476.0,96475.0,0.7022041]
[1740201492710,0.207322,96476.0,96475.0,0.7022441]
[1740201493311,0.207322,96476.0,96475.0,0.46292]
[1740201494308,0.207322,96476.0,96475.0,0.3628]
[1740201494309,0.217322,96476.0,96475.0,0.3628]
[1740201494614,0.217322,96476.0,96475.0,0.46292]
[1740201495103,0.217322,96476.0,96475.0,0.64925222]
[1740201499202,0.217322,96476.0,96475.0,0.46292]
[1740201503018,0.217322,96476.0,96475.0,0.3628]
[1740201506619,0.37277094,96476.0,96475.0,0.002]
[1740201506820,0.2073284,96473.0,96472.0,0.09846]
[1740201507019,0.2173284,96473.0,96472.0,0.09846]
[1740201507224,0.2495284,96473.0,96472.0,0.02591]
[1740201508120,0.2505284,96473.0,96472.0,0.02691]
[1740201508515,0.2505284,96473.0,96472.0,0.001]
[1740201509118,0.2505284,96473.0,96472.0,1e-07]
[1740201510310,0.4709284,96473.0,96472.0,1e-07]
[1740201510517,0.52133434,96473.0,96472.0,1e-07]
[1740201516915,0.55143434,96473.0,96472.0,1e-07]
[1740201519517,0.51133434,96473.0,96472.0,0.2073307]
[1740201519717,0.47913434,96473.0,96472.0,0.2073307]
[1740201520022,0.47913434,96473.0,96472.0,0.2385307]
[1740201521028,0.48913434,96473.0,96472.0,0.2385307]
[1740201521219,0.47913434,96473.0,96472.0,0.2385307]
[1740201521616,0.4387284,96473.0,96472.0,0.2385307]
[1740201522225,0.2183284,96473.0,96472.0,0.2385307]
[1740201523319,0.2183284,96473.0,96472.0,0.0312001]
[1740201527933,0.001,96473.0,96472.0,0.2385307]
[1740201528520,0.2083284,96473.0,96472.0,0.2385307]
[1740201528924,0.001,96473.0,96472.0,0.2385307]
[1740201529234,0.2083284,96473.0,96472.0,0.2385307]
[1740201529623,0.2083284,96473.0,96472.0,0.5993307]
[1740201532127,0.2083284,96473.0,96472.0,0.7009307]
[1740201533025,0.2083284,96473.0,96472.0,0.7008907]
[1740201538824,0.2083284,96473.0,96472.0,0.5993307]
[1740201539037,0.2083284,96473.0,96472.0,0.7007307]
[1740201551745,0.2083284,96473.0,96472.0,0.88706292]
[1740201552943,0.2083284,96473.0,96472.0,0.54713232]
[1740201553247,0.2506284,96473.0,96472.0,0.64861232]
[1740201553448,0.2506284,96473.0,96472.0,0.54713232]
[1740201555940,0.2506284,96473.0,96472.0,0.3608001]
[1740201559245,0.2506284,96473.0,96472.0,1e-07]
[1740201559847,0.30103374,96473.0,96472.0,1e-07]
[1740201564346,0.2506284,96473.0,96472.0,1e-07]
[1740201567251,0.2406284,96473.0,96472.0,1e-07]
[1740201567452,0.2406284,96473.0,96472.0,0.5681307]
[1740201567753,0.2406284,96473.0,96472.0,0.3608001]
[1740201568157,0.2083284,96473.0,96472.0,0.5681307]
[1740201568358,0.2083284,96473.0,96472.0,0.3608001]
[1740201568749,0.2183284,96473.0,96472.0,0.3608001]
[1740201571759,0.2183284,96473.0,96472.0,1e-07]
[1740201571967,0.2183284,96473.0,96472.0,0.3608001]
[1740201572563,0.2083284,96473.0,96472.0,0.3608001]
[1740201572966,0.2183284,96473.0,96472.0,0.3608001]
[1740201574857,0.2083284,96473.0,96472.0,0.3608001]
[1740201575067,0.2183284,96473.0,96472.0,0.3608001]
[1740201575269,0.2083284,96473.0,96472.0,0.3608001]
[1740201575571,0.2183284,96473.0,96472.0,0.3608001]
[1740201577668,0.2083284,96473.0,96472.0,0.3608001]
[1740201578266,0.2083284,96473.0,96472.0,0.5681307]
[1740201578660,0.2083284,96473.0,96472.0,0.5988307]
[1740201579562,0.001,96473.0,96472.0,0.5988307]
[1740201580165,0.2083284,96473.0,96472.0,0.7009907]
[1740201582374,0.2073284,96473.0,96472.0,0.7019906]
[1740201583074,0.00014351,96477.0,96476.0,0.207322]
[1740201583470,0.00014351,96477.0,96476.0,0.237322]
[1740201584877,0.00014351,96477.0,96476.0,0.25352242]
[1740201585472,0.00214351,96477.0,96476.0,0.25352242]
[1740201586177,0.00014351,96477.0,96476.0,0.25352242]
[1740201586376,0.00214351,96477.0,96476.0,0.25352242]
[1740201587482,0.00214351,96477.0,96476.0,0.25352222]
[1740201589389,0.00214351,96477.0,96476.0,0.61432222]
[1740201589583,0.00214351,96477.0,96476.0,0.25352222]
[1740201589790,0.00214351,96477.0,96476.0,0.61432222]
[1740201591487,0.00214351,96477.0,96476.0,0.61432225]
[1740201591681,0.00214351,96477.0,96476.0,0.25352225]
[1740201591880,0.00214351,96477.0,96476.0,0.61432225]
[1740201592284,0.00214351,96477.0,96476.0,0.25352225]
[1740201592486,0.00214351,96477.0,96476.0,0.61432225]
[1740201592992,0.00214351,96477.0,96476.0,0.598122]
[1740201596196,0.00214351,96477.0,96476.0,0.61432221]
[1740201599786,0.00214351,96477.0,96476.0,0.61432223]
[1740201600892,0.20946331,96477.0,96476.0,0.58432223]
[1740201601485,0.00214351,96477.0,96476.0,0.58432223]
[1740201601695,0.20946331,96477.0,96476.0,0.58432223]
[1740201601984,0.00214351,96477.0,96476.0,0.568122]
[1740201603088,0.00214351,96477.0,96476.0,0.81662944]
[1740201603398,0.20946331,96477.0,96476.0,0.81662944]
[1740201606501,0.00214351,96477.0,96476.0,0.81662944]
[1740201607202,0.00214351,96477.0,96476.0,0.568122]
[1740201614900,0.20946331,96477.0,96476.0,0.928922]
[1740201615107,0.00214351,96477.0,96476.0,0.928922]
[1740201615607,0.20946331,96477.0,96476.0,0.928922]
[1740201617698,0.00214351,96477.0,96476.0,0.928922]
[1740201618910,0.20946331,96477.0,96476.0,0.928922]